fUST/lending_fUST_20241029
["ID","MTS","AMOUNT","RATE_DAILY","PERIOD"]
[340941123,1730140239858,-500.0,0.00024657,4]
[340941124,1730140239867,-500.0,0.00024657,4]
[340941125,1730140239876,-500.0,0.00024657,4]
[340941126,1730140239885,-481.41782789,0.00024673,2]
[340941127,1730140239894,-500.0,0.00024673,2]
[340941128,1730140239907,-500.0,0.00024673,2]
[340941129,1730140239917,-500.0,0.00024673,2]
[340941130,1730140239927,-151.282783,0.00024818,2]
[340941131,1730140239937,-205.034485,0.00024818,2]
[340941132,1730140239947,-19776.5360823,0.00024921,3]
[340941133,1730140239956,-15252.9080918,0.00024921,3]
[340941134,1730140239966,-355.08173515,0.0002493,2]
[340941135,1730140239979,-500.0,0.0002493,2]
[340941136,1730140239988,-500.0,0.0002493,2]
[340941137,1730140239997,-632.60109711,0.0002493,2]
[340941138,1730140240006,-500.0,0.00024931,4]
[340941139,1730140240016,-291.97899591,0.00024931,4]
[340941140,1730140240026,-500.0,0.00024931,4]
[340941141,1730140240035,-368.61568258,0.00024931,4]
[340941142,1730140240044,-636.52483204,0.00024931,4]
[340941143,1730140240053,-500.0,0.00024931,4]
[340941144,1730140240063,-500.0,0.00024931,4]
[340941145,1730140240073,-500.0,0.00024931,4]
[340941146,1730140240082,-500.0,0.00024931,4]
[340941147,1730140240092,-500.0,0.00024931,4]
[340941148,1730140240101,-500.0,0.00024931,4]
[340941149,1730140240111,-500.0,0.00024931,4]
[340941150,1730140240121,-500.0,0.00024931,4]
[340941151,1730140240131,-500.0,0.00024931,4]
[340941152,1730140240140,-500.0,0.00024931,4]
[340941154,1730140240150,-500.0,0.00024931,4]
[340941156,1730140240160,-500.0,0.00024931,4]
[340941158,1730140240169,-500.0,0.00024931,4]
[340941160,1730140240179,-500.0,0.00024931,4]
[340941162,1730140240188,-500.0,0.00024931,4]
[340941164,1730140240198,-500.0,0.00024931,4]
[340941166,1730140240207,-500.0,0.00024931,4]
[340941168,1730140240217,-500.0,0.00024931,4]
[340941169,1730140240227,-521.21,0.00024931,4]
[340941171,1730140240237,-418.22064661,0.00024931,4]
[340941172,1730140240246,-368.8482547,0.00024931,4]
[340941173,1730140240256,-500.0,0.00024931,4]
[340941174,1730140240265,-500.0,0.00024931,4]
[340941175,1730140240274,-500.0,0.00024931,4]
[340941176,1730140240283,-500.0,0.00024931,4]
[340941177,1730140240293,-500.0,0.00024931,4]
[340941178,1730140240302,-500.0,0.00024931,4]
[340941179,1730140240311,-500.0,0.00024931,4]
[340941180,1730140240321,-500.0,0.00024931,4]
[340941181,1730140240330,-500.0,0.00024931,4]
[340941182,1730140240340,-500.0,0.00024931,4]
[340941183,1730140240349,-500.0,0.00024931,4]
[340941184,1730140240358,-500.0,0.00024931,4]
[340941185,1730140240368,-500.0,0.00024931,4]
[340941186,1730140240378,-500.0,0.00024931,4]
[340941187,1730140240389,-500.0,0.00024931,4]
[340941188,1730140240399,-500.0,0.00024931,4]
[340941189,1730140240409,-931.68,0.00024931,4]
[340941190,1730140240419,-1457.12,0.00024931,4]
[340941191,1730140240428,-1818.33,0.00024931,4]
[340941192,1730140240437,-500.0,0.00024931,4]
[340941193,1730140240446,-500.0,0.00024931,4]
[340941194,1730140240456,-549.25,0.00024931,4]
[340941195,1730140240466,-500.0,0.00024931,4]
[340941196,1730140240477,-500.0,0.00024931,4]
[340941197,1730140240486,-500.0,0.00024931,4]
[340941198,1730140240495,-500.0,0.00024931,4]
[340941199,1730140240504,-500.0,0.00024931,4]
[340941200,1730140240514,-500.0,0.00024931,4]
[340941201,1730140240523,-500.0,0.00024931,4]
[340941202,1730140240533,-500.0,0.00024931,4]
[340941203,1730140240541,-500.0,0.00024931,4]
[340941204,1730140240550,-500.0,0.00024931,4]
[340941205,1730140240560,-500.0,0.00024931,4]
[340941206,1730140240569,-500.0,0.00024931,4]
[340941207,1730140240578,-500.0,0.00024931,4]
[340941208,1730140240587,-500.0,0.00024931,4]
[340941209,1730140240596,-849.21,0.00024931,4]
[340941210,1730140240606,-500.0,0.00024931,4]
[340941211,1730140240615,-511.62,0.00024931,4]
[340941212,1730140240624,-500.0,0.00024931,4]
[340941213,1730140240634,-500.0,0.00024931,4]
[340941214,1730140240643,-500.0,0.00024931,4]
[340941215,1730140240652,-500.0,0.00024931,4]
[340941216,1730140240661,-500.0,0.00024931,4]
[340941217,1730140240671,-500.0,0.00024931,4]
[340941218,1730140240680,-500.0,0.00024931,4]
[340941219,1730140240690,-500.0,0.00024931,4]
[340941220,1730140240699,-500.0,0.00024931,4]
[340941221,1730140240708,-500.0,0.00024931,4]
[340941222,1730140240717,-794.57,0.00024931,4]
[340941223,1730140240728,-500.0,0.00024931,4]
[340941224,1730140240737,-500.0,0.00024931,4]
[340941225,1730140240746,-500.0,0.00024931,4]
[340941226,1730140240756,-500.0,0.00024931,2]
[340941227,1730140240766,-500.0,0.00024931,4]
[340941228,1730140240775,-500.0,0.00024931,4]
[340941229,1730140240785,-500.0,0.00024931,4]
[340941230,1730140240794,-500.0,0.00024931,4]
[340941231,1730140240803,-500.0,0.00024931,4]
[340941232,1730140240812,-500.0,0.00024931,4]
[340941233,1730140240821,-500.0,0.00024931,4]
[340941234,1730140240830,-500.0,0.00024931,4]
[340941235,1730140240839,-500.0,0.00024931,4]
[340941236,1730140240849,-500.0,0.00024931,4]
[340941237,1730140240859,-500.0,0.00024931,4]
[340941238,1730140240868,-500.0,0.00024931,4]
[340941239,1730140240878,-500.0,0.00024931,4]
[340941240,1730140240887,-500.0,0.00024931,4]
[340941241,1730140240896,-500.0,0.00024931,4]
[340941242,1730140240908,-500.0,0.00024931,4]
[340941243,1730140240917,-500.0,0.00024931,4]
[340941244,1730140240927,-500.0,0.00024931,4]
[340941245,1730140240936,-500.0,0.00024931,4]
[340941246,1730140240945,-500.0,0.00024931,4]
[340941247,1730140240955,-500.0,0.00024973,2]
[340941248,1730140240965,-1000.0,0.00025,5]
[340941249,1730140240974,-22880.69055103,0.00025,2]
[340941250,1730140240986,-500.0,0.00025001,30]
[340941251,1730140240996,-500.0,0.00025001,30]
[340941252,1730140241006,-500.0,0.00025001,30]
[340941253,1730140241016,-500.0,0.00025001,30]
[340941254,1730140241026,-500.0,0.00025001,30]
[340941255,1730140241035,-500.0,0.00025001,30]
[340941256,1730140241045,-500.0,0.00025001,30]
[340941257,1730140241054,-500.0,0.00025001,30]
[340941258,1730140241064,-500.0,0.00025001,30]
[340941259,1730140241073,-500.0,0.00025001,30]
[340941260,1730140241083,-500.0,0.00025001,30]
[340941261,1730140241092,-205.034485,0.00025128,2]
[340941262,1730140241102,-19776.5360823,0.00025175,3]
[340941263,1730140241112,-15252.9080918,0.00025175,3]
[340941264,1730140241121,-19776.5360823,0.00025195,3]
[340941265,1730140241131,-15252.9080918,0.00025195,3]
[340941266,1730140241141,-203.22006966,0.00025205,4]
[340941267,1730140241151,-500.0,0.00025205,4]
[340941268,1730140241161,-500.0,0.00025205,4]
[340941269,1730140241170,-330.04040887,0.00025205,4]
[340941270,1730140241180,-500.0,0.00025205,4]
[340941271,1730140241189,-578.82,0.00025205,4]
[340941272,1730140241199,-527.41,0.00025205,4]
[340941273,1730140241209,-605.92775396,0.00025205,4]
[340941274,1730140241218,-500.0,0.00025205,4]
[340941275,1730140241229,-500.0,0.00025205,4]
[340941276,1730140241238,-500.0,0.00025205,4]
[340941277,1730140241248,-500.0,0.00025205,4]
[340941278,1730140241257,-500.0,0.00025205,4]
[340941279,1730140241267,-500.0,0.00025205,4]
[340941280,1730140241276,-500.0,0.00025205,4]
[340941281,1730140241285,-500.0,0.00025205,4]
[340941282,1730140241294,-500.0,0.00025205,4]
[340941283,1730140241304,-521.21,0.00025205,4]
[340941284,1730140241314,-500.0,0.00025205,4]
[340941285,1730140241323,-500.0,0.00025205,4]
[340941286,1730140241333,-500.0,0.00025205,4]
[340941287,1730140241342,-500.0,0.00025205,4]
[340941288,1730140241352,-500.0,0.00025205,4]
[340941289,1730140241362,-500.0,0.00025205,4]
[340941290,1730140241371,-500.0,0.00025205,4]
[340941291,1730140241381,-500.0,0.00025205,4]
[340941292,1730140241391,-500.0,0.00025205,4]
[340941293,1730140241400,-433.3488844,0.00025205,4]
[340941294,1730140241410,-500.0,0.00025205,4]
[340941295,1730140241418,-500.0,0.00025205,4]
[340941296,1730140241428,-500.0,0.00025205,4]
[340941297,1730140241438,-500.0,0.00025205,4]
[340941298,1730140241447,-500.0,0.00025205,4]
[340941299,1730140241456,-500.0,0.00025205,4]
[340941300,1730140241465,-931.68,0.00025205,4]
[340941301,1730140241474,-1457.12,0.00025205,4]
[340941302,1730140241486,-1818.33,0.00025205,4]
[340941303,1730140241496,-500.0,0.00025205,4]
[340941304,1730140241505,-500.0,0.00025205,4]
[340941305,1730140241514,-549.25,0.00025205,4]
[340941306,1730140241523,-500.0,0.00025205,4]
[340941307,1730140241532,-500.0,0.00025205,4]
[340941308,1730140241541,-500.0,0.00025205,4]
[340941309,1730140241550,-500.0,0.00025205,4]
[340941310,1730140241560,-500.0,0.00025205,4]
[340941311,1730140241571,-500.0,0.00025205,4]
[340941312,1730140241580,-500.0,0.00025205,4]
[340941313,1730140241590,-500.0,0.00025205,4]
[340941314,1730140241599,-500.0,0.00025205,4]
[340941315,1730140241609,-500.0,0.00025205,4]
[340941316,1730140241618,-500.0,0.00025205,4]
[340941317,1730140241628,-849.21,0.00025205,4]
[340941318,1730140241637,-500.0,0.00025205,4]
[340941319,1730140241647,-511.62,0.00025205,4]
[340941320,1730140241656,-500.0,0.00025205,4]
[340941321,1730140241666,-500.0,0.00025205,4]
[340941322,1730140241676,-500.0,0.00025205,4]
[340941323,1730140241686,-500.0,0.00025205,4]
[340941324,1730140241695,-500.0,0.00025205,4]
[340941325,1730140241705,-500.0,0.00025205,4]
[340941326,1730140241714,-500.0,0.00025205,4]
[340941327,1730140241724,-500.0,0.00025205,4]
[340941328,1730140241734,-500.0,0.00025205,4]
[340941329,1730140241744,-794.57,0.00025205,4]
[340941330,1730140241753,-500.0,0.00025205,4]
[340941331,1730140241762,-500.0,0.00025205,4]
[340941332,1730140241772,-500.0,0.00025205,2]
[340941333,1730140241781,-500.0,0.00025205,4]
[340941334,1730140241790,-500.0,0.00025205,4]
[340941335,1730140241799,-500.0,0.00025205,4]
[340941336,1730140241809,-500.0,0.00025205,4]
[340941337,1730140241818,-500.0,0.00025205,4]
[340941338,1730140241827,-500.0,0.00025205,4]
[340941339,1730140241836,-500.0,0.00025205,4]
[340941340,1730140241845,-500.0,0.00025205,4]
[340941341,1730140241855,-500.0,0.00025205,4]
[340941342,1730140241864,-500.0,0.00025205,4]
[340941343,1730140241873,-500.0,0.00025205,4]
[340941344,1730140241882,-500.0,0.00025205,4]
[340941345,1730140241891,-500.0,0.00025205,4]
[340941346,1730140241900,-500.0,0.00025205,4]
[340941347,1730140241915,-500.0,0.00025205,4]
[340941348,1730140241925,-500.0,0.00025205,4]
[340941349,1730140241934,-150.0,0.00025321,2]
[340941350,1730140241944,-205.034485,0.00025439,2]
[340941351,1730140241955,-19776.5360823,0.00025459,3]
[340941352,1730140241964,-15252.9080918,0.00025459,3]
[340941353,1730140241974,-185.30233914,0.00025479,4]
[340941354,1730140241985,-500.0,0.00025479,4]
[340941355,1730140241994,-500.0,0.00025479,4]
[340941356,1730140242004,-309.46507615,0.00025479,4]
[340941357,1730140242014,-500.0,0.00025479,4]
[340941358,1730140242023,-500.0,0.00025479,4]
[340941359,1730140242032,-500.0,0.00025479,4]
[340941360,1730140242042,-500.0,0.00025479,4]
[340941361,1730140242051,-500.0,0.00025479,4]
[340941362,1730140242060,-500.0,0.00025479,4]
[340941363,1730140242070,-500.0,0.00025479,4]
[340941364,1730140242079,-500.0,0.00025479,4]
[340941365,1730140242089,-521.21,0.00025479,4]
[340941366,1730140242098,-623.33484917,0.00025479,4]
[340941367,1730140242107,-500.0,0.00025479,4]
[340941368,1730140242117,-500.0,0.00025479,4]
[340941369,1730140242127,-500.0,0.00025479,4]
[340941370,1730140242136,-539.85,0.00025479,4]
[340941371,1730140242145,-408.0738029,0.00025479,4]
[340941372,1730140242155,-500.0,0.00025479,4]
[340941373,1730140242164,-561.61,0.00025479,4]
[340941374,1730140242173,-500.0,0.00025479,4]
[340941375,1730140242183,-500.0,0.00025479,4]
[340941376,1730140242192,-500.0,0.00025479,4]
[340941377,1730140242201,-500.0,0.00025479,4]
[340941378,1730140242211,-931.68,0.00025479,4]
[340941379,1730140242220,-1457.12,0.00025479,4]
[340941380,1730140242229,-1818.33,0.00025479,4]
[340941381,1730140242239,-500.0,0.00025479,4]
[340941382,1730140242248,-500.0,0.00025479,4]
[340941383,1730140242257,-549.25,0.00025479,4]
[340941384,1730140242266,-500.0,0.00025479,4]
[340941385,1730140242276,-500.0,0.00025479,4]
[340941386,1730140242285,-500.0,0.00025479,4]
[340941387,1730140242294,-500.0,0.00025479,4]
[340941388,1730140242303,-500.0,0.00025479,4]
[340941389,1730140242313,-500.0,0.00025479,4]
[340941390,1730140242322,-500.0,0.00025479,4]
[340941391,1730140242331,-500.0,0.00025479,4]
[340941392,1730140242340,-500.0,0.00025479,4]
[340941393,1730140242350,-635.95488666,0.00025479,4]
[340941394,1730140242474,-500.0,0.00025479,4]
[340941395,1730140242490,-849.21,0.00025479,4]
[340941396,1730140242500,-500.0,0.00025479,4]
[340941397,1730140242509,-511.62,0.00025479,4]
[340941398,1730140242519,-500.0,0.00025479,4]
[340941399,1730140242529,-500.0,0.00025479,4]
[340941400,1730140242538,-500.0,0.00025479,4]
[340941401,1730140242547,-500.0,0.00025479,4]
[340941403,1730140242557,-500.0,0.00025479,4]
[340941405,1730140242566,-500.0,0.00025479,4]
[340941407,1730140242575,-500.0,0.00025479,4]
[340941409,1730140242585,-500.0,0.00025479,4]
[340941410,1730140242594,-500.0,0.00025479,4]
[340941411,1730140242603,-794.57,0.00025479,4]
[340941412,1730140242613,-500.0,0.00025479,4]
[340941413,1730140242622,-500.0,0.00025479,2]
[340941414,1730140242632,-374.23970712,0.00025479,4]
[340941415,1730140242641,-500.0,0.00025479,4]
[340941416,1730140242650,-500.0,0.00025479,4]
[340941417,1730140242659,-500.0,0.00025479,4]
[340941418,1730140242668,-500.0,0.00025479,4]
[340941419,1730140242677,-500.0,0.00025479,4]
[340941420,1730140242686,-500.0,0.00025479,4]
[340941421,1730140242696,-500.0,0.00025479,4]
[340941422,1730140242708,-500.0,0.00025479,4]
[340941423,1730140242718,-500.0,0.00025479,4]
[340941424,1730140242727,-500.0,0.00025479,4]
[340941425,1730140242737,-500.0,0.00025479,4]
[340941426,1730140242746,-500.0,0.00025479,4]
[340941427,1730140242756,-500.0,0.00025479,4]
[340941428,1730140242765,-19776.5360823,0.00025486,3]
[340941429,1730140242774,-15252.9080918,0.00025486,3]
[340941430,1730140242783,-1661.82,0.000255,14]
[340941431,1730140242793,-150.0,0.0002554,2]
[340941432,1730140242802,-19776.5360823,0.00025743,3]
[340941433,1730140242811,-15252.9080918,0.00025743,3]
[340941434,1730140242821,-205.034485,0.00025749,2]
[340941436,1730140242830,-500.0,0.00025753,4]
[340941438,1730140242839,-500.0,0.00025753,4]
[340941440,1730140242848,-287.28888362,0.00025753,4]
[340941441,1730140242857,-261.20687247,0.00025753,4]
[340941442,1730140242866,-500.0,0.00025753,4]
[340941443,1730140242875,-500.0,0.00025753,4]
[340941444,1730140242884,-500.0,0.00025753,4]
[340941445,1730140242893,-500.0,0.00025753,4]
[340941446,1730140242903,-500.0,0.00025753,4]
[340941448,1730140242915,-500.0,0.00025753,4]
[340941450,1730140242925,-521.21,0.00025753,4]
[340941452,1730140242934,-500.0,0.00025753,4]
[340941454,1730140242944,-500.0,0.00025753,4]
[340941456,1730140242953,-500.0,0.00025753,4]
[340941457,1730140242962,-500.0,0.00025753,4]
[340941458,1730140242972,-500.0,0.00025753,4]
[340941459,1730140242981,-500.0,0.00025753,4]
[340941460,1730140242990,-500.0,0.00025753,4]
[340941461,1730140242999,-500.0,0.00025753,4]
[340941462,1730140243008,-931.68,0.00025753,4]
[340941463,1730140243018,-1457.12,0.00025753,4]
[340941464,1730140243027,-1818.33,0.00025753,4]
[340941465,1730140243036,-500.0,0.00025753,4]
[340941466,1730140243045,-500.0,0.00025753,4]
[340941468,1730140243054,-549.25,0.00025753,4]
[340941470,1730140243063,-500.0,0.00025753,4]
[340941472,1730140243073,-500.0,0.00025753,4]
[340941474,1730140243082,-500.0,0.00025753,4]
[340941476,1730140243092,-500.0,0.00025753,4]
[340941478,1730140243101,-500.0,0.00025753,4]
[340941480,1730140243111,-500.0,0.00025753,4]
[340941482,1730140243120,-500.0,0.00025753,4]
[340941484,1730140243130,-360.07275156,0.00025753,4]
[340941486,1730140243140,-849.21,0.00025753,4]
[340941488,1730140243149,-511.62,0.00025753,4]
[340941490,1730140243158,-500.0,0.00025753,4]
[340941491,1730140243167,-500.0,0.00025753,4]
[340941493,1730140243177,-500.0,0.00025753,4]
[340941495,1730140243186,-500.0,0.00025753,4]
[340941497,1730140243195,-500.0,0.00025753,4]
[340941499,1730140243205,-152.65801389,0.00025753,4]
[340941502,1730140243215,-500.0,0.00025753,4]
[340941504,1730140243224,-794.57,0.00025753,4]
[340941506,1730140243236,-500.0,0.00025753,4]
[340941507,1730140243245,-500.0,0.00025753,2]
[340941510,1730140243254,-500.0,0.00025753,4]
[340941515,1730140243266,-500.0,0.00025753,4]
[340941518,1730140243275,-500.0,0.00025753,4]
[340941520,1730140243284,-500.0,0.00025753,4]
[340941522,1730140243294,-500.0,0.00025753,4]
[340941524,1730140243303,-500.0,0.00025753,4]
[340941526,1730140243312,-500.0,0.00025753,4]
[340941527,1730140243322,-500.0,0.00025753,4]
[340941529,1730140243331,-500.0,0.00025753,4]
[340941531,1730140243340,-500.0,0.00025753,4]
[340941533,1730140243350,-500.0,0.00025753,4]
[340941535,1730140243359,-9800.92098852,0.00026,120]
[340941537,1730140243368,-19776.5360823,0.00026007,4]
[340941539,1730140243378,-15252.9080918,0.00026007,4]
[340941541,1730140243387,-19776.5360823,0.00026017,4]
[340941543,1730140243396,-15252.9080918,0.00026017,4]
[340941545,1730140243406,-500.0,0.00026027,4]
[340941547,1730140243415,-500.0,0.00026027,4]
[340941549,1730140243425,-304.98926214,0.00026027,4]
[340941551,1730140243434,-150.66557091,0.00026027,4]
[340941565,1730140243559,-349.33442909,0.00026027,4]
[340941567,1730140243569,-500.0,0.00026027,4]
[340941569,1730140243578,-350.77238531,0.00026027,4]
[340941571,1730140243590,-149.22761469,0.00026027,4]
[340941573,1730140243599,-500.0,0.00026027,4]
[340941575,1730140243609,-500.0,0.00026027,4]
[340941577,1730140243618,-521.21,0.00026027,4]
[340941579,1730140243627,-500.0,0.00026027,4]
[340941581,1730140243637,-500.0,0.00026027,4]
[340941583,1730140243646,-500.0,0.00026027,4]
[340941585,1730140243656,-500.0,0.00026027,4]
[340941587,1730140243665,-500.0,0.00026027,4]
[340941589,1730140243675,-500.0,0.00026027,4]
[340941591,1730140243684,-500.0,0.00026027,4]
[340941593,1730140243694,-500.0,0.00026027,4]
[340941595,1730140243703,-611.77658976,0.00026027,4]
[340941597,1730140243714,-319.90341024,0.00026027,4]
[340941599,1730140243724,-1457.12,0.00026027,4]
[340941601,1730140243735,-1818.33,0.00026027,4]
[340941603,1730140243746,-500.0,0.00026027,4]
[340941605,1730140243757,-500.0,0.00026027,4]
[340941607,1730140243767,-549.25,0.00026027,4]
[340941609,1730140243777,-500.0,0.00026027,4]
[340941611,1730140243787,-500.0,0.00026027,4]
[340941613,1730140243796,-500.0,0.00026027,4]
[340941615,1730140243805,-500.0,0.00026027,4]
[340941617,1730140243814,-500.0,0.00026027,4]
[340941619,1730140243824,-500.0,0.00026027,4]
[340941621,1730140243833,-500.0,0.00026027,4]
[340941623,1730140243843,-849.21,0.00026027,4]
[340941625,1730140243853,-511.62,0.00026027,4]
[340941627,1730140243863,-500.0,0.00026027,4]
[340941629,1730140243873,-500.0,0.00026027,4]
[340941631,1730140243883,-500.0,0.00026027,4]
[340941634,1730140243894,-500.0,0.00026027,4]
[340941635,1730140243904,-500.0,0.00026027,4]
[340941637,1730140243917,-500.0,0.00026027,4]
[340941639,1730140243927,-794.57,0.00026027,4]
[340941641,1730140243936,-500.0,0.00026027,4]
[340941643,1730140243947,-500.0,0.00026027,2]
[340941645,1730140243957,-500.0,0.00026027,4]
[340941647,1730140243966,-500.0,0.00026027,4]
[340941649,1730140243976,-500.0,0.00026027,4]
[340941651,1730140243989,-500.0,0.00026027,4]
[340941653,1730140243998,-500.0,0.00026027,4]
[340941655,1730140244007,-500.0,0.00026027,4]
[340941657,1730140244016,-500.0,0.00026027,4]
[340941659,1730140244026,-500.0,0.00026027,4]
[340941661,1730140244035,-500.0,0.00026027,4]
[340941663,1730140244044,-500.0,0.00026027,4]
[340941665,1730140244054,-500.0,0.00026027,4]
[340941667,1730140244063,-1000.0,0.00026042,2]
[340941669,1730140244073,-1000.0,0.00026042,2]
[340941671,1730140244082,-1000.0,0.00026042,2]
[340941673,1730140244091,-205.034485,0.00026059,2]
[340941675,1730140244101,-500.0,0.00026301,4]
[340941677,1730140244111,-500.0,0.00026301,4]
[340941679,1730140244122,-500.0,0.00026301,4]
[340941680,1730140244131,-500.0,0.00026301,4]
[340941682,1730140244141,-500.0,0.00026301,4]
[340941684,1730140244150,-500.0,0.00026301,4]
[340941686,1730140244159,-500.0,0.00026301,4]
[340941688,1730140244169,-521.21,0.00026301,4]
[340941690,1730140244179,-500.0,0.00026301,4]
[340941692,1730140244188,-500.0,0.00026301,4]
[340941694,1730140244198,-186.13407025,0.00026301,4]
[340941696,1730140244207,-500.0,0.00026301,4]
[340941698,1730140244216,-500.0,0.00026301,4]
[340941700,1730140244226,-500.0,0.00026301,4]
[340941702,1730140244237,-500.0,0.00026301,4]
[340941704,1730140244246,-500.0,0.00026301,4]
[340941706,1730140244256,-931.68,0.00026301,4]
[340941708,1730140244265,-1457.12,0.00026301,4]
[340941710,1730140244274,-1818.33,0.00026301,4]
[340941712,1730140244283,-439.65455132,0.00026301,4]
[340941714,1730140244292,-500.0,0.00026301,4]
[340941715,1730140244301,-549.25,0.00026301,4]
[340941717,1730140244310,-500.0,0.00026301,4]
[340941719,1730140244319,-500.0,0.00026301,4]
[340941721,1730140244329,-500.0,0.00026301,4]
[340941723,1730140244339,-500.0,0.00026301,4]
[340941726,1730140244349,-500.0,0.00026301,4]
[340941728,1730140244358,-500.0,0.00026301,4]
[340941730,1730140244367,-500.0,0.00026301,4]
[340941731,1730140244377,-849.21,0.00026301,4]
[340941733,1730140244387,-511.62,0.00026301,4]
[340941735,1730140244396,-500.0,0.00026301,4]
[340941737,1730140244406,-500.0,0.00026301,4]
[340941739,1730140244416,-500.0,0.00026301,4]
[340941741,1730140244425,-500.0,0.00026301,4]
[340941743,1730140244435,-500.0,0.00026301,4]
[340941745,1730140244444,-500.0,0.00026301,4]
[340941747,1730140244454,-794.57,0.00026301,4]
[340941749,1730140244464,-500.0,0.00026301,4]
[340941751,1730140244473,-500.0,0.00026301,2]
[340941753,1730140244484,-500.0,0.00026301,4]
[340941755,1730140244493,-500.0,0.00026301,4]
[340941757,1730140244503,-500.0,0.00026301,4]
[340941759,1730140244513,-500.0,0.00026301,4]
[340941761,1730140244522,-500.0,0.00026301,4]
[340941763,1730140244531,-500.0,0.00026301,4]
[340941765,1730140244540,-500.0,0.00026301,4]
[340941767,1730140244549,-500.0,0.00026301,4]
[340941768,1730140244558,-500.0,0.00026301,4]
[340941770,1730140244567,-500.0,0.00026301,4]
[340941772,1730140244576,-500.0,0.00026301,4]
[340941774,1730140244586,-197.93957534,0.00026323,4]
[340941776,1730140244599,-557.01155632,0.00026323,4]
[340941778,1730140244611,-711.59648486,0.00026323,4]
[340941780,1730140244622,-2679.32672915,0.00026323,4]
[340941783,1730140244634,-582.04603108,0.00026323,4]
[340941785,1730140244649,-2256.7722023,0.00026323,4]
[340941901,1730140455839,166.701361,0.00013973,2]
[340941903,1730140513534,555.0,0.0002011,2]
[340941904,1730141139142,-391.542258,0.00022695,2]
[340941905,1730141139165,-66.31695151,0.0002288,2]
[340941906,1730141232119,-297.57440038,0.00022416,2]
[340941907,1730141235868,168.90688,0.00013973,2]
[340941909,1730141243105,-2.42559962,0.00022416,2]
[340941910,1730141243127,-300.0,0.00022416,2]
[340941911,1730141243149,-1371.00654861,0.00022417,2]
[340941912,1730141249121,-304.73127161,0.00022417,2]
[340941913,1730141252128,-23224.26217978,0.00022417,2]
[340941914,1730141252149,-3392.611347,0.00022768,2]
[340941915,1730141252171,-94.26847549,0.0002288,2]
[340941916,1730141252191,-160.585427,0.00022988,2]
[340941917,1730141252213,-160.585427,0.00023096,2]
[340941918,1730141252234,-160.585427,0.00023205,2]
[340941919,1730141252256,-160.585427,0.00023313,2]
[340941920,1730141252278,-160.585427,0.00023421,2]
[340941921,1730141252300,-3392.611347,0.00023453,2]
[340941922,1730141252321,-160.585427,0.0002353,2]
[340941923,1730141252344,-160.585427,0.00023638,2]
[340941924,1730141252366,-160.585427,0.00023747,2]
[340941925,1730141252387,-160.585427,0.00023855,2]
[340941926,1730141252409,-160.585427,0.00023963,2]